Cogmind - Beta 15 @@@ ROGUE MODE // 2025.06.01 @ 20:17:13 Player: DGSTER Result: Destroyed by as-25253 with Assembled F-torch Performance ------------- Evolutions (0) 0 Regions Visited (2) 400 Robots Destroyed (11) 55 Value Destroyed (256) 256 Prototype IDs (2) 40 Alien Tech Used (0) 0 Bonus (0) 0 TOTAL SCORE: 751 Bonus ------- None Cogmind --------- Core Integrity 0/250 Matter 300/300 Energy 100/100 System Corruption 2% Temperature Cool (20) Movement Core (50) Location -10/Mines Parts ------- > --- POWER (1) -------- (None) > --- PROPULSION (2) --- (None) > --- UTILITY (2) ------ (None) > --- WEAPON (2) ------- (None) > --- INVENTORY (5) ---- Light Nuclear Core Improved Treads Large Storage Unit High-capacity Storage Unit Seismic Detector Peak State ------------ > --- POWER ------------ Ion Engine > --- PROPULSION ------- Improved Treads Improved Treads > --- UTILITY ---------- Large Storage Unit Weight Redist. System > --- WEAPON ----------- EM Pulse Gun Medium Laser > --- INVENTORY -------- Ion Engine Improved Treads Improved Treads Aluminum Leg Aluminum Leg Medium Armor Plating Medium Armor Plating Assault Rifle [Rating: 11] Favorites ----------- Power Ion Engine Engine Ion Engine Propulsion Improved Treads Treads Improved Treads Leg Aluminum Leg Utility Large Storage Unit Device Weight Redist. System Storage Large Storage Unit Protection Medium Armor Plating Weapon Assault Rifle Energy Gun Medium Laser Ballistic Gun Assault Rifle Build | -11 -10 -10 ------- Run | Yrd Mat Min Slots Evolved . | . . . Power . | . . . Propulsion . | . . . Utility . | . . . Weapon . | . . . Parts Attached 16 | 6 7 3 Power 2 | 1 . 1 Engine 2 | 1 . 1 Core . | . . . Reactor . | . . . Propulsion 5 | 2 2 1 Treads 3 | . 2 1 Leg 2 | 2 . . Wheel . | . . . Hover . | . . . Flight . | . . . Utility 6 | 1 4 1 Device 1 | . 1 . Storage 3 | 1 2 . Processor . | . . . Hackware . | . . . Protection 2 | . 1 1 Artifact . | . . . Weapon 3 | 2 1 . Energy Gun 2 | 2 . . Energy Cannon . | . . . Ballistic Gun 1 | . 1 . Ballistic Cannon . | . . . Launcher . | . . . Special Weapon . | . . . Impact Weapon . | . . . Slashing Weapon . | . . . Piercing Weapon . | . . . Special Melee Weapon . | . . . Unidentified Prototypes . | . . . Parts Lost 7 | . 1 6 Power 1 | . . 1 Propulsion 2 | . . 2 Utility 1 | . . 1 Weapon 3 | . 1 2 Highest Loss Streak 6 | . 1 6 To Critical Strikes . | . . . Average Backups 7 | . 7 8 Power 1 | . 1 1 Propulsion 2 | . 2 1 Utility 3 | . 3 4 Weapon . | . . . Tool/Special . | . . . Unused Backups 5 | . . 5 Power 1 | . . 1 Propulsion 1 | . . 1 Utility 2 | . . 2 Weapon 1 | . . 1 Tool/Special . | . . . Average Slot Usage (%) 95 | . 96 93 Engine 13 | . 14 13 Treads 23 | . 22 27 Leg 4 | . 5 . Device 3 | . 4 . Storage 14 | . 14 14 Protection 9 | . 8 14 Energy Gun 14 | . 14 11 Ballistic Gun 10 | . 10 12 Peak Build Rating 11 | 6 11 11 Average Rating 9 | 4 10 10 On Entrance 5 | . 6 11 Naked Turns 6 | . . 6 Heaviest Build 54 | 14 54 36 Greatest Support 52 | 20 52 46 Greatest Overweight (x) 1 | . 1 . Average Overweight (x) . | . . . Largest Inventory Capacity 20 | 8 20 15 Average Capacity 13 | 7 13 14 Most Carried 10 | 2 10 10 Average Carried 7 | . 7 9 Final Capacity 15 | 8 15 5 Final Carried 8 | 2 8 5 Class Distribution -------------------- 100% | Mutant Dominant Class ---------------- Mutant | -10/Materials Mutant | -10/Mines Resources | -11 -10 -10 ----------- Run | Yrd Mat Min Matter Collected 481 | 260 149 72 Remotely . | . . . Salvage Created 368 | . 289 79 Parts 18 | . 17 1 Haulers Intercepted . | . . . Recyclers Shooed . | . . . Parts Field Recycled . | . . . Retrieved Matter . | . . . Parts Self-Destructed . | . . . Prevented . | . . . Kills | -11 -10 -10 ------- Run | Yrd Mat Min Combat Hostiles Destroyed 14 | . 10 4 Melee 1 | . . 1 Guns 13 | . 10 3 Classes Destroyed 3 | . 2 1 Swarmer 6 | . 6 . Grunt 5 | . 4 1 Assembled 3 | . . 3 Best Kill Streak 3 | . 3 2 Combat Bots Only 3 | . 3 2 Max Kills in Single Turn 2 | . 2 1 Gunslinging 1 | . 1 . Exploded . | . . . Melee 1 | . . 1 Uniques/NPCs Destroyed . | . . . Combat | -11 -10 -10 -------- Run | Yrd Mat Min Hostile Shots Fired 116 | . 57 59 Missed 26 | . 10 16 Hits 90 | . 47 43 Melee 11 | . . 11 Projectile 79 | . 47 32 Damage Taken 1246 | . 480 766 Core 255 | . 99 156 Absorbed by Shields . | . . . Core Remaining (%) 100 | 100 . . Volleys Fired 54 | . 30 24 Largest 2 | . 2 2 Hottest 90 | . 90 70 Shots Fired 91 | . 60 31 Gun 91 | . 60 31 Cannon . | . . . Launcher . | . . . Special . | . . . Kinetic 44 | . 20 24 Thermal 28 | . 21 7 Explosive . | . . . Electromagnetic 19 | . 19 . Robot Hit Streak 7 | . 7 5 Robot Miss Streak 4 | . 3 4 Penetration Max . | . . . Secondary Targets 2 | . 2 . Max Gunslinging Chain 1 | . 1 . Shots Hit Robots 49 | . 35 14 Core Hits 23 | . 14 9 Critical Kills . | . . . Critical Parts Destroyed . | . . . Critical Strikes 1 | . 1 . Burn 1 | . 1 . Melee Attacks . | . . . Impact . | . . . Slashing . | . . . Piercing . | . . . Sneak Attacks . | . . . Combat Hostiles . | . . . Follow-up Attacks . | . . . Damage Inflicted 627 | . 436 191 Guns 604 | . 428 176 Cannons . | . . . Explosions . | . . . Melee . | . . . Ramming 23 | . 8 15 Kinetic 299 | . 135 164 Thermal 175 | . 163 12 Explosive . | . . . Electromagnetic 130 | . 130 . Impact . | . . . Slashing . | . . . Piercing . | . . . Highest Corruption 2 | . 2 2 Average Corruption 2 | . 2 2 Corruption Purged . | . . . Corruption Blocked . | . . . Effects 3 | . 2 1 Heat Flow Errors 1 | . 1 . Data Loss (minor) 1 | . . 1 Misfires 1 | . 1 . Overload Shots . | . . . Overflow Damage . | . . . Projectiles . | . . . Explosions . | . . . Melee . | . . . Knockbacks . | . . . Impact . | . . . Kinetic . | . . . Secondary . | . . . Self-Inflicted Damage 3 | . . 3 Shots . | . . . Rammed 8 | . 2 6 Targets Rammed 9 | . 2 7 Kicked . | . . . Crushed 1 | . . 1 Highest Temperature 371 | . 371 171 Average Temperature 112 | . 130 62 Received Heat Transfer 467 | . 180 287 Effects 1 | . 1 . Shutdowns 1 | . 1 . Siege Activations . | . . . Martial Activations . | . . . Shielding Activations . | . . . Robots Disrupted . | . . . Combat Hostiles . | . . . Robots Corrupted . | . . . Combat Hostiles . | . . . Parts Fried . | . . . Impact Corruptions . | . . . Robots Melted . | . . . Combat Hostiles . | . . . Parts Melted 2 | . 2 . Heat Transferred 592 | . 555 37 Parts Sabotaged . | . . . Parts Stolen . | . . . Parts Stripped . | . . . Power Chain Reactions . | . . . Alert | -11 -10 -10 ------- Run | Yrd Mat Min Maximum Alert Level . | . . . Low Security (%) 100 | 100 100 100 Level 1 . | . . . Level 2 . | . . . Level 3 . | . . . Level 4 . | . . . Level 5 . | . . . High Security . | . . . Max Security . | . . . Peak Influence 90 | . 90 44 Initial 19 | . . 19 Average 27 | . 31 20 Influence Increases 365 | . 320 45 Destroy 0b10 Robot/C 220 | . 200 20 Destroy Leader 60 | . 50 10 Successful Hack 9 | . 9 . Destroy Structure 1 | . 1 . Lose Combat Pursuer 75 | . 60 15 Influence Decreases 365 | . 269 96 Entered New Map 32 | . . 32 Time Decay 309 | . 259 50 Lost Part 24 | . 10 14 Squads Dispatched 2 | . 2 . Investigation 1 | . 1 . Extermination . | . . . Reinforcement 1 | . 1 . Assault . | . . . Garrison . | . . . Intercept . | . . . Searches Triggered . | . . . Construction Impeded . | . . . Haulers Reinforced . | . . . Active Scanning Responses . | . . . Cargo Convoy Interrupts . | . . . Stealth | -11 -10 -10 --------- Run | Yrd Mat Min Distress Signals . | . . . Communications Jammed . | . . . Distress Signals . | . . . Times Spotted 42 | . 17 25 Peak Tracking Total 16 | . 4 16 Tactical Retreats 6 | . 2 4 Traps | -11 -10 -10 ------- Run | Yrd Mat Min Traps Triggered 2 | . 2 . Indirectly . | . . . Trap Hack Attempts . | . . . Triggered . | . . . Disarmed . | . . . Reprogrammed . | . . . Reused . | . . . Traps Extracted . | . . . Installed . | . . . Triggered . | . . . Machines | -11 -10 -10 ---------- Run | Yrd Mat Min Machines Disabled . | . . . Max in Single Turn . | . . . Machines Repaired . | . . . Machines Dismantled . | . . . Machines Sabotaged . | . . . Overloaded Fab Kills . | . . . Hacking | -11 -10 -10 --------- Run | Yrd Mat Min Machines Accessed 3 | . 3 . Terminals 3 | . 3 . Fabricators . | . . . Repair Stations . | . . . Recycling Units . | . . . Scanalyzers . | . . . Garrison Access . | . . . Total Hacks 8 | . 8 . Successful 5 | . 5 . Failed 3 | . 3 . Catastrophic . | . . . Database Lockouts . | . . . Manual . | . . . Terminals 8 | . 8 . Fabricators . | . . . Repair Stations . | . . . Recycling Units . | . . . Scanalyzers . | . . . Garrison Access . | . . . Terminal Hacks 5 | . 5 . Prototype ID Bank 1 | . 1 . Locate Traps 2 | . 2 . Transport Status 1 | . 1 . Zone Layout 1 | . 1 . Fabricator Hacks . | . . . Repair Station Hacks . | . . . Recycling Unit Hacks . | . . . Scanalyzer . | . . . Garrison Access Hacks . | . . . Unauthorized Hacks . | . . . Terminals . | . . . Fabricators . | . . . Repair Stations . | . . . Recycling Units . | . . . Scanalyzers . | . . . Garrison Access . | . . . Data Cores Recovered . | . . . Used . | . . . Hacking Detections 1 | . 1 . Full Trace Events . | . . . Feedback Events . | . . . Feedback Blocked . | . . . Robot Schematics Acquired . | . . . Robots Built . | . . . Authchips . | . . . Time . | . . . Total Robot Build Rating . | . . . Part Schematics Acquired . | . . . Parts Built . | . . . Authchips . | . . . Time . | . . . Total Part Build Rating . | . . . Parts Repaired . | . . . Time . | . . . Parts Recycled . | . . . Recycled Matter . | . . . Retrieved Matter . | . . . Retrieved Components . | . . . Parts Scanalyzed . | . . . Part Schematics Acquired . | . . . Parts Damaged . | . . . Bothacking | -11 -10 -10 ------------ Run | Yrd Mat Min Used RIF Installer . | . . . Robots Hacked . | . . . Non-combat . | . . . Combat . | . . . Robot Hacks Applied . | . . . Relay Couplers Released . | . . . Fabnet Peak Effective % . | . . . Robots Rewired . | . . . Allies Hacked . | . . . Hacks Repelled . | . . . Allies | -11 -10 -10 -------- Run | Yrd Mat Min Total Allies . | . . . Largest Group . | . . . Highest-Rated Group . | . . . Highest-Rated Ally . | . . . Total Orders . | . . . Ally Attacks . | . . . Total Damage . | . . . Kills . | . . . Allies Corrupted . | . . . Allies Melted . | . . . Intel | -11 -10 -10 ------- Run | Yrd Mat Min Active Infowar (turns) . | . . . Robot Analysis Total . | . . . Derelict Logs Recovered . | . . . Drone Launches . | . . . Drone Recoveries . | . . . Exploration | -11 -10 -10 ------------- Run | Yrd Mat Min Turns Passed 916 | 64 710 142 Spaces Moved 451 | 49 358 44 Core 12 | 7 . 5 Treads 303 | . 264 39 Legs 136 | 42 94 . Wheels . | . . . Hover . | . . . Flight . | . . . Fastest Speed 50 | 50 120 50 Average Speed 146 | 110 150 147 Slowest Speed 240 | 120 240 160 Overloaded Moves . | . . . Propulsion Burnouts . | . . . Robots Hopped . | . . . Potential Cave-ins . | . . . Cave-ins Triggered . | . . . Exploration Rate (%) 21 | 3 50 11 Regions Visited 2 Branch Regions 1 Pre-discovered Areas . | . . . Known Exits Taken . | . . . Unknown Exits Taken 2 | 1 1 . Scrap Searched . | . . . Spaces Dug . | . . . Terrain Destroyed . | . . . Melee . | . . . Projectile . | . . . AOE . | . . . Terrain Rammed . | . . . Walls Destroyed . | . . . Machines Disabled . | . . . Actions | -11 -10 -10 --------- Run | Yrd Mat Min Total 608 | 56 466 86 Wait 61 | . 55 6 Move 449 | 48 357 44 Hop . | . . . Pick Up 12 | 2 8 2 Fast Attach 7 | 6 1 . Attach 5 | . 2 3 Detach 1 | . 1 . Swap 7 | . 7 . Drop 3 | . 3 . Fire 54 | . 30 24 Melee . | . . . Ram 3 | . . 3 Kick . | . . . Crush 6 | . 2 4 Escape Stasis . | . . . Rewire . | . . . Trap . | . . . Miscellaneous . | . . . Route ------- -11/Scrapyard -10/Materials (discovered 3 exits: [*Mat] / [*Min] / [*Sub]) -10/Mines History --------- Turn | Location | Event 6 | -11/Scrapyard | Discovered new exit (range 15) 65 | -11/Scrapyard | Entered Materials 281 | -10/Materials | Discovered new exit (range 10) 315 | -10/Materials | Build established: Mutant 375 | -10/Materials | Discovered new exit (range 11) 497 | -10/Materials | Discovered new exit (range 15) 765 | -10/Materials | Derelicts attacked the area 775 | -10/Materials | Entered Mines 782 | -10/Mines | Received a Rocket Launcher from a helpful Derelict 832 | -10/Mines | Assembled infested the area 837 | -10/Mines | Assisted by a Guerilla fighting off Assembled 881 | -10/Mines | Core integrity fell below 50% 902 | -10/Mines | Core integrity fell below 20% 911 | -10/Mines | Released all parts (4) 917 | -10/Mines | Destroyed by as-25253 with Assembled F-torch Last Messages --------------- 00883_ Med. Laser destroyed. 00888_ Ion Engine destroyed. 00891_ Med. Armor Plating destroyed. 00895_ Assault Rifle destroyed. 00895_ Imp. Treads destroyed. 00902_ G-34 Mercenary destroyed. 00902_ Slammed into as-63413. 00903_ Acquired 13 matter. 00904_ Acquired 41 matter. 00905_ Slammed into as-24356. 00907_ System corrupted: Component data lost. 00907_ Slammed into as-24356. 00908_ Imp. Treads destroyed. 00909_ Crushed as-24356. 00909_ as-24356 destroyed. 00911_ Released Lrg. Storage Unit. 00911_ Released Ion Engine. 00911_ Released Imp. Treads. 00911_ Released Med. Armor Plating. 00911_ Slammed into as-63413. Map ----- +----------------------------------------------------+ | | | | | | | | | | | | | | | | | | | | | | | | | | | | | | | | | | | | | | | | | ????????????????????????????????????????? | | ????????????????????????????????????????? | | ?????????????????????????????#####??????? | | ????????????????????????????## ##?????? | | ???????????????????########## ##????? | | ???????????????????# aa @ %a ##???? | | ???????????????????# #########% #???? | | ?????????????????????????????#%## #???? | | ?????????????????????????????#%### ##???? | | ???????????????????????#######!#####????? | | ???????????????????????# !]!* #?????? | | ???????????????????????# = #?????? | | ???????????????????????# """ """ #?????? | | ???????????????????????# """ """ #?????? | | ???????????????????????# """ """ #?????? | | ???????????????????????# #?????? | | ???????????????????????# #?????? | | ???????????????????????# #?????? | | ???????????????????????#### ######?????? | | ??????????????????????????#%=#??????????? | | ??????????????????????? #??????????? | | ??????????????????????##### ??????????? | | ?????????????????????????? ??????????? | | ????????????????????????? ?????????? | | ???????????????????????? ?????????? | | ???????????????????????? ????????? | | ??????????????????????? ????????? | | ?????????????????????? ### ???????? | | ?????????????????????##??## ???????? | | ??????????????????????????## ??????? | +----------------------------------------------------+ Best States ------------- Heat Dissipation 25 Energy Generation 10 Energy Capacity 250 Matter Stores 300 Matter Capacity 300 Sight Range 16 Terrain Scan Density 10 Additional Mass Support 6 Armor Coverage 225 Evasion (%) 55 Recoil Reduction 2 Item Schematics ----------------- None Robot Schematics ------------------ None Fabricated ------------ Nothing Repaired ---------- Nothing Alien Tech Used ----------------- None Achievements -------------- None Challenges ------------ None Game ------ Seed SmartHellfireLeg Manual? 0 Play Time 00:08:13 Cumulative 70.5 hours Start 2025.06.01 @ 20:09:55 End 2025.06.01 @ 20:17:13 Sessions 1 Manual Loads 0 Difficulty Rogue Special Mode None Game No. 87 Rogue 86 Adventurer 1 Explorer 0 Win Type - Total 1 Types 1/0/0/0/0/0/0/0/0/0 Lore% 41 Gallery% 45 Achievement% 43 Wizard Run 0 Options --------- Layout 0 ASCII 0 Keyboard 0 Movement Numpad Keybinds 0 Fullscreen 1 Font 18/SmallcapsGlow Map View 76x50 Zoom Use 0% Tactical HUD 1 Map Filters NONE Filters NONE Steam 1 RUN: f2167443-ab9d-493b-ba12-1aa185683c44